[Event "OEBRO 85th Anniversary GM 2021"]
[Site "Copenhagen"]
[Date "2021.10.21"]
[Round "6.8"]
[White "Porte, Henrik"]
[Black "Jacobsen, Mikkel Manosri"]
[Result "1/2-1/2"]
[ECO "D50"]
[WhiteElo "2170"]
[BlackElo "2293"]
[Annotator "ChessBase"]
[PlyCount "180"]
[EventDate "2021.10.18"]
[EventType "swiss"]
[EventCountry "DEN"]
[SourceTitle "playchess.com"]
[Source "ChessBase"]
[SourceQuality "1"]
[TimeControl "40/5400+30:900+30"]

1. d4 {[%emt 0:00:03]} d5 {[%emt 0:24:53]} 2. c4 {[%emt 0:00:07]} e6 {[%emt 0:00:04]} 3. Nc3 {[%emt 0:00:03]} Nf6 {[%emt 0:00:05]} 4. Bg5 {[%emt 0:00:06]} c6 {[%emt 0:00:04]} 5. Nf3 {[%emt 0:01:34]} h6 {[%emt 0:00:04]} 6. Bxf6 {[%emt 0:03:08]} Qxf6 {[%emt 0:00:02]} 7. e3 {[%emt 0:00:08]} Nd7 {[%emt 0:00:09]} 8. cxd5 {[%emt 0:01:40]} exd5 {[%emt 0:00:11]} 9. Bd3 {[%emt 0:00:05]} Be7 {[%emt 0:03:57]} 10. Qc2 {[%emt 0:00:39]} O-O {[%emt 0:00:30]} 11. O-O {[%emt 0:01:06]} Nb6 {[%emt 0:11:56]} 12. Rab1 {[%emt 0:05:10]} Be6 {[%emt 0:00:35]} 13. b4 {[%emt 0:07:04]} Nd7 {[%emt 0:00:22]} 14. Ne2 {[%emt 0:04:17]} Bd6 {[%emt 0:03:21]} 15. b5 {[%emt 0:08:17]} Bg4 {[%emt 0:01:41]} 16. Nd2 {[%emt 0:02:32]} c5 {[%emt 0:00:15]} 17. dxc5 {[%emt 0:03:29]} Nxc5 {[%emt 0:00:07]} 18. Nd4 {[%emt 0:02:15]} Rac8 {[%emt 0:04:29]} 19. Be2 {[%emt 0:16:27]} Ne4 {[%emt 0:03:08]} 20. Qb2 {[%emt 0:12:41]} Bxe2 {[%emt 0:00:35]} 21. Nxe2 {[%emt 0:02:47]} Qxb2 {[%emt 0:00:27]} 22. Rxb2 {[%emt 0:00:05]} Ba3 {[%emt 0:00:05]} 23. Rb3 {[%emt 0:06:21]} Nxd2 {[%emt 0:00:12]} 24. Rxa3 {[%emt 0:00:04]} Nxf1 {[%emt 0:00:13]} 25. Kxf1 {[%emt 0:00:04]} Rc2 {[%emt 0:06:02]} 26. Rxa7 {[%emt 0:01:44]} Rfc8 {[%emt 0:00:39]} 27. Nd4 {[%emt 0:00:23]} Rb2 {[%emt 0:00:56]} 28. g4 {[%emt 0:02:00]} Rc1+ {[%emt 0:00:07]} 29. Kg2 {[%emt 0:00:08]} Ra1 {[%emt 0:00:04]} 30. Rxb7 {[%emt 0:04:13]} Raxa2 {[%emt 0:00:41]} 31. Rd7 {[%emt 0:01:04]} Rxf2+ {[%emt 0:09:08]} 32. Kg3 {[%emt 0:00:08]} g5 {[%emt 0:02:44]} 33. b6 {[%emt 0:05:17]} Rg2+ {[%emt 0:00:10]} 34. Kh3 {[%emt 0:00:08]} Rxh2+ {[%emt 0:02:53]} 35. Kg3 {[%emt 0:00:24]} Rhb2 {[%emt 0:00:44]} 36. b7 {[%emt 0:00:40]} Kg7 {[%emt 0:00:05]} 37. Nc6 {[%emt 0:06:28]} Ra3 {[%emt 0:00:09]} 38. Kf3 {[%emt 0:00:36]} Rab3 {[%emt 0:00:39]} 39. b8=Q {[%emt 0:02:08]} Rxb8 {[%emt 0:00:08]} 40. Nxb8 {[%emt 0:00:04]} Rxb8 {[%emt 0:00:06]} 41. Rxd5 {[%emt 0:15:05]} Rb6 {[%emt 0:17:00]} 42. Ra5 {[%emt 0:01:34]} Kg6 {[%emt 0:00:43]} 43. Rc5 {[%emt 0:02:10]} Ra6 {[%emt 0:00:31]} 44. Rb5 {[%emt 0:00:10]} f6 {[%emt 0:01:16]} 45. Rc5 {[%emt 0:00:22]} h5 {[%emt 0:01:09]} 46. gxh5+ {[%emt 0:00:08]} Kxh5 {[%emt 0:00:04]} 47. Rc3 {[%emt 0:00:00]} Ra5 {[%emt 0:00:00]} 48. Kg3 {[%emt 0:00:00]} Ra4 {[%emt 0:00:00]} 49. Rb3 {[%emt 0:00:00]} Kg6 {[%emt 0:00:00]} 50. Kf3 {[%emt 0:00:00]} Kh5 {[%emt 0:00:00]} 51. Kg3 {[%emt 0:00:00]} Ra1 {[%emt 0:00:00]} 52. Rc3 {[%emt 0:00:00]} Kg6 {[%emt 0:00:12]} 53. Kf3 {[%emt 0:00:00]} f5 {[%emt 0:00:50]} 54. Rb3 {[%emt 0:00:00]} g4+ {[%emt 0:01:17]} 55. Kg3 {[%emt 0:03:18]} Rf1 {[%emt 0:00:06]} 56. e4 {[%emt 0:01:13]} fxe4 {[%emt 0:00:15]} 57. Kxg4 {[%emt 0:00:12]} Kf6 {[%emt 0:00:05]} 58. Kg3 {[%emt 0:01:46]} Ke5 {[%emt 0:01:37]} 59. Kg2 {[%emt 0:00:55]} Rf8 {[%emt 0:00:14]} 60. Ra3 {[%emt 0:00:17]} Rb8 {[%emt 0:04:43]} 61. Kf2 {[%emt 0:00:17]} Kf4 {[%emt 0:00:07]} 62. Ke2 {[%emt 0:00:54]} Rb2+ {[%emt 0:00:04]} 63. Ke1 {[%emt 0:00:11]} Kf5 {[%emt 0:00:40]} 64. Ra5+ {[%emt 0:00:23]} Kg4 {[%emt 0:00:07]} 65. Ra3 {[%emt 0:00:08]} Kf4 {[%emt 0:00:10]} 66. Rc3 {[%emt 0:01:01]} Ra2 {[%emt 0:00:42]} 67. Rb3 {[%emt 0:00:08]} Ke5 {[%emt 0:00:06]} 68. Rb5+ {[%emt 0:01:22]} Kd4 {[%emt 0:00:28]} 69. Rb4+ {[%emt 0:00:45]} Kd3 {[%emt 0:00:09]} 70. Rb3+ {[%emt 0:00:07]} Kc4 {[%emt 0:00:06]} 71. Rh3 {[%emt 0:00:12]} Kd4 {[%emt 0:01:08]} 72. Rg3 {[%emt 0:00:19]} Ke5 {[%emt 0:03:51]} 73. Rh3 {[%emt 0:00:19]} Ra1+ {[%emt 0:00:30]} 74. Ke2 {[%emt 0:00:08]} Ra2+ {[%emt 0:00:15]} 75. Ke1 {[%emt 0:00:04]} Kf4 {[%emt 0:00:04]} 76. Rb3 {[%emt 0:00:09]} Ra8 {[%emt 0:00:41]} 77. Ke2 {[%emt 0:00:28]} Ra4 {[%emt 0:01:08]} 78. Rc3 {[%emt 0:00:36]} Ke5 {[%emt 0:00:07]} 79. Rb3 {[%emt 0:00:20]} Kd4 {[%emt 0:00:07]} 80. Rh3 {[%emt 0:00:17]} Ra2+ {[%emt 0:00:19]} 81. Ke1 {[%emt 0:00:06]} Ra8 {[%emt 0:00:05]} 82. Ke2 {[%emt 0:00:12]} Ke5 {[%emt 0:00:25]} 83. Rb3 {[%emt 0:00:37]} Kf4 {[%emt 0:00:07]} 84. Rc3 {[%emt 0:00:11]} Ra2+ {[%emt 0:00:04]} 85. Ke1 {[%emt 0:00:05]} e3 {[%emt 0:00:04]} 86. Rc8 {[%emt 0:00:12]} Kf3 {[%emt 0:00:23]} 87. Rf8+ {[%emt 0:00:08]} Ke4 {[%emt 0:00:05]} 88. Re8+ {[%emt 0:00:07]} Kf3 {[%emt 0:00:04]} 89. Rf8+ {[%emt 0:00:04]} Ke4 {[%emt 0:00:05]} 90. Re8+ {[%emt 0:00:04]} Kf3 {[%emt 0:00:08]} 1/2-1/2

[Event "OEBRO 85th Anniversary GM 2021"]
[Site "Copenhagen"]
[Date "2021.10.23"]
[Round "8.1"]
[White "Kistrup, Nicolai"]
[Black "Hamitevici, Vladimir"]
[Result "0-1"]
[ECO "A50"]
[WhiteElo "2249"]
[BlackElo "2465"]
[Annotator "ChessBase"]
[PlyCount "120"]
[EventDate "2021.10.18"]
[EventType "swiss"]
[EventCountry "DEN"]
[SourceTitle "playchess.com"]
[Source "ChessBase"]
[SourceQuality "1"]
[TimeControl "40/5400+30:900+30"]

1. d4 {[%emt 0:00:02]} Nf6 {[%emt 0:07:54]} 2. c4 {[%emt 0:00:02]} b6 {[%emt 0:00:48]} 3. Nc3 {[%emt 0:00:24]} Bb7 {[%emt 0:00:06]} 4. Qc2 {[%emt 0:00:37]} d5 {[%emt 0:00:15]} 5. cxd5 {[%emt 0:00:53]} Nxd5 {[%emt 0:00:07]} 6. e4 {[%emt 0:01:59]} Nxc3 {[%emt 0:02:53]} 7. bxc3 {[%emt 0:00:10]} e6 {[%emt 0:00:09]} 8. Nf3 {[%emt 0:16:30]} Be7 {[%emt 0:02:52]} 9. Bb5+ {[%emt 0:06:29]} c6 {[%emt 0:07:29]} 10. Bd3 {[%emt 0:01:10]} c5 {[%emt 0:00:19]} 11. O-O {[%emt 0:01:57]} cxd4 {[%emt 0:00:27]} 12. cxd4 {[%emt 0:04:32]} O-O {[%emt 0:00:12]} 13. Bb2 {[%emt 0:09:35]} Nc6 {[%emt 0:00:22]} 14. d5 {[%emt 0:13:56]} Nb4 {[%emt 0:02:51]} 15. Qc3 {[%emt 0:00:57]} f6 {[%emt 0:00:22]} 16. Bb1 {[%emt 0:15:23]} exd5 {[%emt 0:12:39]} 17. Rd1 {[%emt 0:10:17]} Qc8 {[%emt 0:01:51]} 18. a3 {[%emt 0:09:16]} Qxc3 {[%emt 0:01:32]} 19. Bxc3 {[%emt 0:00:03]} Na6 {[%emt 0:00:07]} 20. exd5 {[%emt 0:00:12]} Bd6 {[%emt 0:03:18]} 21. Bf5 {[%emt 0:01:32]} Rfd8 {[%emt 0:03:06]} 22. Be6+ {[%emt 0:02:10]} Kf8 {[%emt 0:00:15]} 23. Nh4 {[%emt 0:01:04]} Nc7 {[%emt 0:02:15]} 24. Nf5 {[%emt 0:02:39]} Bc5 {[%emt 0:00:10]} 25. Bb4 {[%emt 0:00:32]} Bxd5 {[%emt 0:01:46]} 26. Bxc5+ {[%emt 0:00:27]} bxc5 {[%emt 0:00:02]} 27. Bxd5 {[%emt 0:00:10]} Rxd5 {[%emt 0:01:48]} 28. Ne3 {[%emt 0:00:38]} Rxd1+ {[%emt 0:01:37]} 29. Rxd1 {[%emt 0:00:06]} Ke8 {[%emt 0:00:27]} 30. Kf1 {[%emt 0:01:14]} Rb8 {[%emt 0:00:37]} 31. Nf5 {[%emt 0:00:22]} g6 {[%emt 0:00:54]} 32. Nd6+ {[%emt 0:00:36]} Ke7 {[%emt 0:00:12]} 33. Ne4 {[%emt 0:00:15]} Ne6 {[%emt 0:00:34]} 34. Rc1 {[%emt 0:00:38]} Rc8 {[%emt 0:02:10]} 35. Rc4 {[%emt 0:00:15]} f5 {[%emt 0:00:19]} 36. Nc3 {[%emt 0:00:15]} Rb8 {[%emt 0:01:27]} 37. Ra4 {[%emt 0:00:32]} Rb7 {[%emt 0:00:07]} 38. Ke2 {[%emt 0:00:43]} Kf6 {[%emt 0:04:01]} 39. Kd3 {[%emt 0:00:54]} h5 {[%emt 0:03:31]} 40. Ra6 {[%emt 0:00:28]} g5 {[%emt 0:05:08]} 41. g3 {[%emt 0:09:00]} Ke5 {[%emt 0:03:02]} 42. Kc4 {[%emt 0:03:50]} Rb2 {[%emt 0:05:48]} 43. f4+ {[%emt 0:02:56]} gxf4 {[%emt 0:00:32]} 44. gxf4+ {[%emt 0:00:08]} Nxf4 {[%emt 0:00:17]} 45. h4 {[%emt 0:00:44]} Rc2 {[%emt 0:09:25]} 46. Kb3 {[%emt 0:00:56]} Rh2 {[%emt 0:01:37]} 47. Rxa7 {[%emt 0:00:09]} Rxh4 {[%emt 0:00:06]} 48. a4 {[%emt 0:00:32]} Nd5 {[%emt 0:01:49]} 49. Nxd5 {[%emt 0:01:12]} Kxd5 {[%emt 0:00:07]} 50. Rf7 {[%emt 0:00:29]} Ke6 {[%emt 0:19:27]} 51. Rc7 {[%emt 0:00:18]} Rb4+ {[%emt 0:01:23]} 52. Ka3 {[%emt 0:00:42]} Rb8 {[%emt 0:03:13]} 53. Rxc5 {[%emt 0:00:25]} Rh8 {[%emt 0:00:07]} 54. Rc1 {[%emt 0:00:42]} f4 {[%emt 0:00:18]} 55. Kb4 {[%emt 0:00:21]} Rb8+ {[%emt 0:01:42]} 56. Ka3 {[%emt 0:00:21]} Kf5 {[%emt 0:00:24]} 57. Rh1 {[%emt 0:00:48]} Kg4 {[%emt 0:00:49]} 58. Rg1+ {[%emt 0:00:28]} Kf3 {[%emt 0:00:13]} 59. Rh1 {[%emt 0:00:10]} Rh8 {[%emt 0:00:11]} 60. a5 {[%emt 0:00:13]} Kg2 {[%emt 0:00:06]} 0-1

[Event "OEBRO 85th Anniversary GM 2021"]
[Site "Copenhagen"]
[Date "2021.10.23"]
[Round "8.2"]
[White "Kozak, Adam"]
[Black "Yankelevich, Lev"]
[Result "1-0"]
[ECO "A14"]
[WhiteElo "2516"]
[BlackElo "2432"]
[Annotator "ChessBase"]
[PlyCount "51"]
[EventDate "2021.10.18"]
[EventType "swiss"]
[EventCountry "DEN"]
[SourceTitle "playchess.com"]
[Source "ChessBase"]
[SourceQuality "1"]
[TimeControl "40/5400+30:900+30"]

1. c4 {[%emt 0:00:14]} e6 {[%emt 0:02:51]} 2. Nf3 {[%emt 0:04:04]} d5 {[%emt 0:00:17]} 3. g3 {[%emt 0:00:08]} Nf6 {[%emt 0:00:18]} 4. Bg2 {[%emt 0:00:10]} Be7 {[%emt 0:00:07]} 5. O-O {[%emt 0:00:09]} O-O {[%emt 0:00:05]} 6. d4 {[%emt 0:02:00]} dxc4 {[%emt 0:00:18]} 7. Qc2 {[%emt 0:00:13]} b5 {[%emt 0:01:35]} 8. a4 {[%emt 0:00:29]} Bb7 {[%emt 0:00:45]} 9. axb5 {[%emt 0:02:07]} a6 {[%emt 0:01:23]} 10. Nc3 {[%emt 0:02:08]} axb5 {[%emt 0:00:18]} 11. Rxa8 {[%emt 0:00:14]} Bxa8 {[%emt 0:00:03]} 12. Nxb5 {[%emt 0:00:27]} Bd5 {[%emt 0:06:10]} 13. Nc3 {[%emt 0:05:08]} Bb7 {[%emt 0:21:48]} 14. Qa4 {[%emt 0:01:21]} Nd5 {[%emt 0:02:21]} 15. Qxc4 {[%emt 0:02:12]} Ba6 {[%emt 0:00:09]} 16. Qa2 {[%emt 0:00:28]} Nb4 {[%emt 0:07:15]} 17. Qb1 {[%emt 0:05:17]} h6 {[%emt 0:05:19]} 18. Rd1 {[%emt 0:03:20]} c5 {[%emt 0:03:36]} 19. dxc5 {[%emt 0:06:28]} Qc8 {[%emt 0:00:08]} 20. Qe4 {[%emt 0:16:53]} Qxc5 {[%emt 0:02:27]} 21. Ne5 {[%emt 0:04:35]} Nd5 {[%emt 0:01:53]} 22. Nxd5 {[%emt 0:05:37]} exd5 {[%emt 0:00:16]} 23. Qxd5 {[%emt 0:01:18]} Bxe2 {[%emt 0:01:05]} 24. Re1 {[%emt 0:02:10]} Qc2 {[%emt 0:05:24]} 25. Be4 {[%emt 0:02:37]} Qc8 {[%emt 0:00:21]} 26. Nxf7 {[%emt 0:00:39]} 1-0

[Event "OEBRO 85th Anniversary GM 2021"]
[Site "Copenhagen"]
[Date "2021.10.23"]
[Round "8.5"]
[White "Larsen, Karsten"]
[Black "Hector, Jonny"]
[Result "1-0"]
[ECO "D02"]
[WhiteElo "2252"]
[BlackElo "2443"]
[Annotator "ChessBase"]
[PlyCount "107"]
[EventDate "2021.10.18"]
[EventType "swiss"]
[EventCountry "DEN"]
[SourceTitle "playchess.com"]
[Source "ChessBase"]
[SourceQuality "1"]
[TimeControl "40/5400+30:900+30"]

1. d4 {[%emt 0:00:05]} d5 {[%emt 0:00:15]} 2. Nf3 {[%emt 0:00:16]} Nc6 {[%emt 0:00:47]} 3. Bf4 {[%emt 0:03:11]} Bg4 {[%emt 0:00:18]} 4. Nbd2 {[%emt 0:05:47]} f6 {[%emt 0:04:07]} 5. c3 {[%emt 0:00:31]} Qd7 {[%emt 0:02:33]} 6. Qb3 {[%emt 0:04:30]} O-O-O {[%emt 0:09:55]} 7. e3 {[%emt 0:00:46]} g5 {[%emt 0:03:54]} 8. Bg3 {[%emt 0:00:12]} h5 {[%emt 0:01:33]} 9. h4 {[%emt 0:09:39]} Bxf3 {[%emt 0:04:10]} 10. Nxf3 {[%emt 0:00:37]} g4 {[%emt 0:01:49]} 11. Nd2 {[%emt 0:00:15]} Nh6 {[%emt 0:04:16]} 12. Bd3 {[%emt 0:12:50]} e5 {[%emt 0:02:48]} 13. O-O-O {[%emt 0:08:10]} Nf5 {[%emt 0:05:03]} 14. Bxf5 {[%emt 0:03:57]} Qxf5 {[%emt 0:00:08]} 15. Rhe1 {[%emt 0:04:57]} Bh6 {[%emt 0:02:15]} 16. Qa4 {[%emt 0:05:59]} Rd6 {[%emt 0:11:02]} 17. Nb3 {[%emt 0:05:03]} Kb8 {[%emt 0:03:28]} 18. Nc5 {[%emt 0:02:03]} Ka8 {[%emt 0:03:56]} 19. Rd2 {[%emt 0:14:39]} Nd8 {[%emt 0:09:31]} 20. Red1 {[%emt 0:01:17]} Rc6 {[%emt 0:06:18]} 21. Rc2 {[%emt 0:07:49]} Ne6 {[%emt 0:05:00]} 22. b4 {[%emt 0:01:42]} Nxc5 {[%emt 0:02:05]} 23. dxc5 {[%emt 0:00:58]} Qe4 {[%emt 0:03:45]} 24. Qb3 {[%emt 0:01:33]} Qxg2 {[%emt 0:02:37]} 25. Qxd5 {[%emt 0:01:09]} Qxd5 {[%emt 0:00:42]} 26. Rxd5 {[%emt 0:00:05]} b6 {[%emt 0:01:55]} 27. Rcd2 {[%emt 0:00:33]} Kb7 {[%emt 0:01:23]} 28. Kc2 {[%emt 0:01:16]} bxc5 {[%emt 0:01:05]} 29. b5 {[%emt 0:01:15]} Re6 {[%emt 0:00:46]} 30. Rxc5 {[%emt 0:00:38]} Rd6 {[%emt 0:04:08]} 31. Rxd6 {[%emt 0:02:13]} cxd6 {[%emt 0:00:02]} 32. Rc6 {[%emt 0:00:06]} Bf8 {[%emt 0:01:53]} 33. e4 {[%emt 0:01:34]} Be7 {[%emt 0:00:14]} 34. Kb3 {[%emt 0:00:46]} Rf8 {[%emt 0:00:25]} 35. Kc4 {[%emt 0:00:13]} f5 {[%emt 0:00:08]} 36. exf5 {[%emt 0:00:23]} Rxf5 {[%emt 0:00:04]} 37. a4 {[%emt 0:01:21]} Rf3 {[%emt 0:02:50]} 38. Kd5 {[%emt 0:00:15]} Bf8 {[%emt 0:00:31]} 39. a5 {[%emt 0:00:16]} Rf7 {[%emt 0:01:30]} 40. Ke6 {[%emt 0:00:56]} Rc7 {[%emt 0:00:22]} 41. Rxc7+ {[%emt 0:03:04]} Kxc7 {[%emt 0:00:02]} 42. c4 {[%emt 0:00:51]} Bh6 {[%emt 0:01:30]} 43. c5 {[%emt 0:03:15]} dxc5 {[%emt 0:00:07]} 44. Bxe5+ {[%emt 0:00:07]} Kb7 {[%emt 0:00:19]} 45. Kd5 {[%emt 0:01:14]} Bd2 {[%emt 0:00:34]} 46. a6+ {[%emt 0:02:42]} Ka8 {[%emt 0:12:07]} 47. Kxc5 {[%emt 0:04:06]} g3 {[%emt 0:00:38]} 48. Bxg3 {[%emt 0:01:22]} Bb4+ {[%emt 0:00:22]} 49. Kc6 {[%emt 0:00:33]} Bc5 {[%emt 0:00:40]} 50. Kd5 {[%emt 0:00:17]} Bd4 {[%emt 0:00:17]} 51. f4 {[%emt 0:00:42]} Be3 {[%emt 0:00:14]} 52. Ke4 {[%emt 0:00:16]} Bc5 {[%emt 0:00:37]} 53. f5 {[%emt 0:00:24]} Bd6 {[%emt 0:00:09]} 54. Be5 {[%emt 0:00:15]} 1-0

[Event "OEBRO 85th Anniversary GM 2021"]
[Site "Copenhagen"]
[Date "2021.10.23"]
[Round "8.6"]
[White "Brondt, Nicolai Kvist"]
[Black "Siddharth, Jagadeesh"]
[Result "1/2-1/2"]
[ECO "A57"]
[WhiteElo "2217"]
[BlackElo "2336"]
[Annotator "ChessBase"]
[PlyCount "110"]
[EventDate "2021.10.18"]
[EventType "swiss"]
[EventCountry "DEN"]
[SourceTitle "playchess.com"]
[Source "ChessBase"]
[SourceQuality "1"]
[TimeControl "40/5400+30:900+30"]

1. d4 {[%emt 0:00:02]} Nf6 {[%emt 0:04:54]} 2. c4 {[%emt 0:00:04]} c5 {[%emt 0:00:09]} 3. d5 {[%emt 0:00:04]} b5 {[%emt 0:00:06]} 4. Qc2 {[%emt 0:00:04]} b4 {[%emt 0:00:08]} 5. e4 {[%emt 0:00:49]} d6 {[%emt 0:00:08]} 6. Bd3 {[%emt 0:01:58]} g6 {[%emt 0:00:08]} 7. Nf3 {[%emt 0:08:25]} Bg7 {[%emt 0:00:09]} 8. O-O {[%emt 0:00:06]} O-O {[%emt 0:00:07]} 9. h3 {[%emt 0:02:30]} a5 {[%emt 0:00:10]} 10. Nbd2 {[%emt 0:07:22]} e5 {[%emt 0:01:45]} 11. a3 {[%emt 0:11:51]} Na6 {[%emt 0:01:15]} 12. Re1 {[%emt 0:04:04]} Nh5 {[%emt 0:03:20]} 13. Nf1 {[%emt 0:01:22]} h6 {[%emt 0:01:07]} 14. Ng3 {[%emt 0:08:15]} Nf4 {[%emt 0:04:41]} 15. Bf1 {[%emt 0:06:55]} Qf6 {[%emt 0:09:04]} 16. Nh2 {[%emt 0:04:46]} h5 {[%emt 0:10:14]} 17. Ne2 {[%emt 0:03:11]} Bd7 {[%emt 0:14:04]} 18. Bd2 {[%emt 0:02:51]} Bh6 {[%emt 0:03:36]} 19. g3 {[%emt 0:05:22]} Nxe2+ {[%emt 0:10:29]} 20. Rxe2 {[%emt 0:00:12]} Qg7 {[%emt 0:02:22]} 21. Bg2 {[%emt 0:10:47]} f5 {[%emt 0:02:45]} 22. exf5 {[%emt 0:03:29]} gxf5 {[%emt 0:01:36]} 23. Bxh6 {[%emt 0:02:03]} Qxh6 {[%emt 0:00:02]} 24. f4 {[%emt 0:00:47]} e4 {[%emt 0:05:27]} 25. Nf1 {[%emt 0:02:20]} h4 {[%emt 0:03:03]} 26. Re3 {[%emt 0:02:00]} hxg3 {[%emt 0:04:22]} 27. Rxg3+ {[%emt 0:00:04]} Kh7 {[%emt 0:00:40]} 28. Qf2 {[%emt 0:01:00]} Rg8 {[%emt 0:00:54]} 29. Rxg8 {[%emt 0:01:40]} Rxg8 {[%emt 0:00:16]} 30. Kh2 {[%emt 0:00:15]} Qf6 {[%emt 0:02:42]} 31. Rc1 {[%emt 0:01:11]} bxa3 {[%emt 0:07:59]} 32. bxa3 {[%emt 0:00:02]} Rb8 {[%emt 0:00:16]} 33. Qe1 {[%emt 0:01:54]} Qh6 {[%emt 0:03:26]} 34. Qg3 {[%emt 0:01:22]} Nc7 {[%emt 0:01:19]} 35. Nd2 {[%emt 0:04:19]} Ne8 {[%emt 0:02:45]} 36. Rb1 {[%emt 0:00:51]} Rxb1 {[%emt 0:01:24]} 37. Nxb1 {[%emt 0:00:01]} Nf6 {[%emt 0:01:06]} 38. Nc3 {[%emt 0:01:28]} Qg6 {[%emt 0:00:59]} 39. Qg5 {[%emt 0:02:52]} a4 {[%emt 0:00:29]} 40. Kg3 {[%emt 0:00:58]} Nh5+ {[%emt 0:00:30]} 41. Kf2 {[%emt 0:15:53]} Ng7 {[%emt 0:11:02]} 42. h4 {[%emt 0:00:00]} Qe8 {[%emt 0:00:11]} 43. Bf1 {[%emt 0:00:00]} Qb8 {[%emt 0:02:31]} 44. Nb5 {[%emt 0:00:00]} Bxb5 {[%emt 0:02:22]} 45. cxb5 {[%emt 0:00:00]} Qe8 {[%emt 0:00:09]} 46. h5 {[%emt 0:00:00]} Nxh5 {[%emt 0:01:41]} 47. Qxf5+ {[%emt 0:00:00]} Kh8 {[%emt 0:00:33]} 48. Qe6 {[%emt 0:00:22]} Qf8 {[%emt 0:00:26]} 49. f5 {[%emt 0:01:01]} Nf6 {[%emt 0:00:34]} 50. b6 {[%emt 0:00:59]} Qh6 {[%emt 0:00:01]} 51. Be2 {[%emt 0:02:12]} Qf4+ {[%emt 0:00:34]} 52. Kg2 {[%emt 0:00:31]} Qg5+ {[%emt 0:00:24]} 53. Kf2 {[%emt 0:00:38]} Qf4+ {[%emt 0:00:58]} 54. Kg2 {[%emt 0:00:40]} Qg5+ {[%emt 0:00:25]} 55. Kf2 {[%emt 0:00:35]} Qf4+ {[%emt 0:00:38]} 1/2-1/2

[Event "OEBRO 85th Anniversary GM 2021"]
[Site "Copenhagen"]
[Date "2021.10.23"]
[Round "8.7"]
[White "Jacobsen, Mikkel Manosri"]
[Black "Korley, Kassa"]
[Result "0-1"]
[ECO "A79"]
[WhiteElo "2293"]
[BlackElo "2407"]
[Annotator "ChessBase"]
[PlyCount "104"]
[EventDate "2021.10.18"]
[EventType "swiss"]
[EventCountry "DEN"]
[SourceTitle "playchess.com"]
[Source "ChessBase"]
[SourceQuality "1"]
[TimeControl "40/5400+30:900+30"]

1. d4 {[%emt 0:14:21]} Nf6 {[%emt 0:00:04]} 2. c4 {[%emt 0:00:11]} e6 {[%emt 0:00:02]} 3. Nf3 {[%emt 0:00:04]} c5 {[%emt 0:00:04]} 4. d5 {[%emt 0:00:04]} exd5 {[%emt 0:00:02]} 5. cxd5 {[%emt 0:00:07]} d6 {[%emt 0:00:02]} 6. Nc3 {[%emt 0:00:07]} g6 {[%emt 0:00:10]} 7. Nd2 {[%emt 0:00:03]} Bg7 {[%emt 0:02:41]} 8. e4 {[%emt 0:00:05]} O-O {[%emt 0:00:08]} 9. Be2 {[%emt 0:00:03]} Na6 {[%emt 0:02:13]} 10. O-O {[%emt 0:00:10]} Re8 {[%emt 0:01:26]} 11. f3 {[%emt 0:00:06]} Nc7 {[%emt 0:01:07]} 12. a4 {[%emt 0:00:04]} b6 {[%emt 0:00:22]} 13. Nc4 {[%emt 0:00:21]} Ba6 {[%emt 0:00:29]} 14. Bg5 {[%emt 0:03:24]} h6 {[%emt 0:02:39]} 15. Bh4 {[%emt 0:01:37]} Bxc4 {[%emt 0:04:46]} 16. Bxc4 {[%emt 0:00:04]} a6 {[%emt 0:01:58]} 17. Re1 {[%emt 0:04:07]} g5 {[%emt 0:06:08]} 18. Bf2 {[%emt 0:00:20]} Nd7 {[%emt 0:00:04]} 19. Bf1 {[%emt 0:00:34]} Be5 {[%emt 0:01:49]} 20. Rb1 {[%emt 0:02:36]} Qf6 {[%emt 0:01:49]} 21. Qd2 {[%emt 0:03:30]} Nf8 {[%emt 0:12:25]} 22. Ne2 {[%emt 0:01:31]} b5 {[%emt 0:06:05]} 23. b4 {[%emt 0:04:02]} c4 {[%emt 0:01:28]} 24. Nd4 {[%emt 0:03:04]} Ng6 {[%emt 0:00:03]} 25. Qd1 {[%emt 0:06:18]} Kh7 {[%emt 0:04:59]} 26. a5 {[%emt 0:06:11]} Rg8 {[%emt 0:01:31]} 27. g3 {[%emt 0:00:43]} Ne8 {[%emt 0:04:08]} 28. Bh3 {[%emt 0:01:45]} Ng7 {[%emt 0:00:18]} 29. Rf1 {[%emt 0:00:30]} Rae8 {[%emt 0:15:28]} 30. Kh1 {[%emt 0:02:13]} Bxd4 {[%emt 0:04:17]} 31. Bxd4 {[%emt 0:01:33]} Qe7 {[%emt 0:00:02]} 32. Qd2 {[%emt 0:01:46]} Ne5 {[%emt 0:00:35]} 33. Rbe1 {[%emt 0:02:06]} f6 {[%emt 0:05:37]} 34. Re3 {[%emt 0:02:38]} Rgf8 {[%emt 0:01:12]} 35. f4 {[%emt 0:02:59]} Nd3 {[%emt 0:01:21]} 36. Bg4 {[%emt 0:05:51]} gxf4 {[%emt 0:01:16]} 37. gxf4 {[%emt 0:00:06]} f5 {[%emt 0:04:07]} 38. Bxg7 {[%emt 0:17:29]} Kxg7 {[%emt 0:05:47]} 39. Bxf5 {[%emt 0:00:07]} Rxf5 {[%emt 0:00:19]} 40. Rg3+ {[%emt 0:00:05]} Kf7 {[%emt 0:02:28]} 41. exf5 {[%emt 0:15:52]} Qe4+ {[%emt 0:16:16]} 42. Qg2 {[%emt 0:01:17]} Qxg2+ {[%emt 0:04:03]} 43. Kxg2 {[%emt 0:00:32]} Nxb4 {[%emt 0:01:00]} 44. Rg6 {[%emt 0:01:32]} Nxd5 {[%emt 0:00:00]} 45. Kh3 {[%emt 0:00:00]} Ne3 {[%emt 0:00:00]} 46. Re1 {[%emt 0:00:00]} Nxf5 {[%emt 0:00:00]} 47. Rxe8 {[%emt 0:00:00]} Kxe8 {[%emt 0:00:00]} 48. Kg4 {[%emt 0:00:00]} Nd4 {[%emt 0:00:00]} 49. Rxd6 {[%emt 0:00:00]} c3 {[%emt 0:00:00]} 50. Rd5 {[%emt 0:00:00]} c2 {[%emt 0:00:00]} 51. Rc5 {[%emt 0:00:00]} b4 {[%emt 0:00:00]} 52. f5 {[%emt 0:00:00]} b3 0-1